{"text_format":"1","workbook":"xlsx","n_sheets":2,"sheets":["ورقة العمل","تكاليف الدراسة"],"not_rendered":{"charts":0,"images":0,"macros":0,"external_links":0,"defined_names":4,"comments":0,"pivot_tables":0},"unopened":[],"bounds":{"document_bytes":16777216,"sheet_cells":100000,"rows_first":2000,"rows_last":500,"rows_between":2000,"halvings":0,"cell_chars":16384,"cell_head_chars":4096},"cells_cut":0,"cells_raw":0,"read":"whole","date_system":"1900"}

{"sheet":"ورقة العمل","index":0,"n_rows":10,"n_cols":14,"rows_kept":10,"cut":false,"hidden":false,"merged":[]}
[]
[null,"اسم الطالب","رقم التواصل","الحالة","اسم المدرسة","مقيد سابق","منطقة السكن","الصف","رسوم فتح الملف","الرسوم الدراسية","قيمة الكتب","قيمة الزي","اشتراك الباص شهري","اشتراك الباص سنوي"]
[1,"محمد 1",1111111111,"يتيم","المبادرة_القديمة","نعم","المنطقة","ثالث ثانوي",{"$f":"INDEX(INDIRECT($E3),MATCH(I$2,'تكاليف الدراسة'!$B$4:$B$7,0)+1,MATCH($H3,'تكاليف الدراسة'!$B$3:$G$3,0))","v":300},{"$f":"INDEX(INDIRECT($E3),MATCH(J$2,'تكاليف الدراسة'!$B$4:$B$7,0)+1,MATCH($H3,'تكاليف الدراسة'!$B$3:$G$3,0))","v":2000},{"$f":"INDEX(INDIRECT($E3),MATCH(K$2,'تكاليف الدراسة'!$B$4:$B$7,0)+1,MATCH($H3,'تكاليف الدراسة'!$B$3:$G$3,0))","v":900},{"$f":"INDEX(INDIRECT($E3),MATCH(L$2,'تكاليف الدراسة'!$B$4:$B$7,0)+1,MATCH($H3,'تكاليف الدراسة'!$B$3:$G$3,0))","v":500}]
[2,"محمد 2",1111111112,"حالة اقتصادية","التعاون_القديم","لا","منطقة1","ثالث ثانوي",{"$f":"INDEX(INDIRECT($E4),MATCH(I$2,'تكاليف الدراسة'!$B$4:$B$7,0)+1,MATCH($H4,'تكاليف الدراسة'!$B$3:$G$3,0))","v":500},{"$f":"INDEX(INDIRECT($E4),MATCH(J$2,'تكاليف الدراسة'!$B$4:$B$7,0)+1,MATCH($H4,'تكاليف الدراسة'!$B$3:$G$3,0))","v":10000},{"$f":"INDEX(INDIRECT($E4),MATCH(K$2,'تكاليف الدراسة'!$B$4:$B$7,0)+1,MATCH($H4,'تكاليف الدراسة'!$B$3:$G$3,0))","v":3300},{"$f":"INDEX(INDIRECT($E4),MATCH(L$2,'تكاليف الدراسة'!$B$4:$B$7,0)+1,MATCH($H4,'تكاليف الدراسة'!$B$3:$G$3,0))","v":3000}]
[3,"محمد 3",1111111113,"يتيم","المبادرة_القديمة","نعم","منطقة1","ابتدائي",{"$f":"INDEX(INDIRECT($E5),2,2)","v":300},{"$f":"INDEX(INDIRECT($E5),3,2)","v":500},{"$f":"INDEX(INDIRECT($E5),4,2)","v":300},{"$f":"INDEX(INDIRECT($E5),5,2)","v":100}]
[4,"محمد 4",1111111114,"حالة اقتصادية","التعاون_الحديث","نعم","منطقة1","كي جي",600,4000,1000,500]
[5,"محمد 5",1111111115,"يتيم","التعاون_الحديث","لا","منطقة3","ابتدائي",600,4000,1000,500]
[6,"محمد 6",1111111116,"حالة اقتصادية","التعاون_الحديث","لا","منطقة 4","كي جي",600,4000,1000,500]
[7,"محمد 7",1111111117,"يتيم","التعاون_الحديث","لا","منطقة5","ثانوي",600,4000,1000,500]
[8,"محمد 8",1111111118,"يتيم","المبادرة_القديمة","لا","منطقة6","ثالث ابتدائي",300,500,300,100]

{"sheet":"تكاليف الدراسة","index":1,"n_rows":28,"n_cols":19,"rows_kept":28,"cut":false,"hidden":false,"merged":[[2,8,2,13],[9,8,9,13],[16,8,16,13],[23,8,23,13]]}
[]
[]
[null,"التعاون الحديث","كي جي","ابتدائي","اعدادي","ثانوي","ثالث ثانوي",null,"تكاليف الباص لمدرسة التعاون الحديث",null,null,null,null,null,null,null,"التعاون_الحديث",null,"كي جي"]
[null,"رسوم فتح الملف",600,600,600,600,600,null,null,"منطقة البالون","منطقة السد","منطقة الجيزة","منطقة فيصل","منطقة أكتوبر",null,null,"التعاون_القديم",null,"ابتدائي"]
[null,"الرسوم الدراسية",4000,5000,6000,8000,9000,null,"عام دراسي",6000,6500,8000,9000,3000,null,null,"المبادرة_الحديثه",null,"اعدادي"]
[null,"قيمة الكتب",1000,2000,3000,3000,3000,null,null,null,null,null,null,null,null,null,"المبادرة_القديمة",null,"ثانوي"]
[null,"قيمة الزي",500,600,700,800,800,null,null,null,null,null,null,null,null,null,null,null,"ثالث ثانوي"]
[]
[]
[null,"التعاون القديم","كي جي","ابتدائي","اعدادي","ثانوي","ثالث ثانوي",null,"تكاليف الباص لمدرسة التعاون القديم"]
[null,"رسوم فتح الملف",500,500,500,500,500,null,null,"منطقة البالون","منطقة السد","منطقة الجيزة","منطقة فيصل","منطقة أكتوبر"]
[null,"الرسوم الدراسية",6000,7000,8000,9000,10000,null,"عام دراسي",5000,2500,3000,6000,1000]
[null,"قيمة الكتب",1200,2200,3300,3300,3300]
[null,"قيمة الزي",2000,2000,3000,3000,3000]
[]
[]
[null,"المبادرة الحديثه","كي جي","ابتدائي","اعدادي","ثانوي","ثالث ثانوي",null,"تكاليف الباص لمدرسة المبادرة الحديثه"]
[null,"رسوم فتح الملف",400,400,400,400,400,null,null,"منطقة البالون","منطقة السد","منطقة الجيزة","منطقة فيصل","منطقة أكتوبر"]
[null,"الرسوم الدراسية",1000,2000,3000,4000,5000,null,"عام دراسي",4000,3000,5000,6000,5000]
[null,"قيمة الكتب",400,500,500,600,600]
[null,"قيمة الزي",700,700,800,800,800]
[]
[]
[null,"المبادرة القديمة","كي جي","ابتدائي","اعدادي","ثانوي","ثالث ثانوي",null,"تكاليف الباص لمدرسة المبادرة القديمة"]
[null,"رسوم فتح الملف",300,300,300,300,300,null,null,"منطقة البالون","منطقة السد","منطقة الجيزة","منطقة فيصل","منطقة أكتوبر"]
[null,"الرسوم الدراسية",500,600,700,800,2000,null,"عام دراسي",1300,1500,1800,2000,700]
[null,"قيمة الكتب",300,500,600,600,900]
[null,"قيمة الزي",100,200,400,500,500]